bitfinex/quotes_BTCUSD_20240727
["timestamp","ask_amount","ask_price","bid_price","bid_amount"]
[1722062325643,2.67582763,68089.0,68088.0,0.20947179]
[1722062326243,2.72582763,68089.0,68088.0,0.20947179]
[1722062326634,2.82473146,68089.0,68088.0,0.20947179]
[1722062326827,2.82473057,68089.0,68088.0,0.20947179]
[1722062327043,2.87473057,68089.0,68088.0,0.20947179]
[1722062327469,2.82473057,68089.0,68088.0,0.20947179]
[1722062327809,2.67582763,68089.0,68088.0,0.20947179]
[1722062328332,2.64535748,68089.0,68088.0,0.20947179]
[1722062328481,2.67611262,68089.0,68088.0,0.20947179]
[1722062328852,2.59961262,68089.0,68088.0,0.20947179]
[1722062329179,2.67611262,68089.0,68088.0,0.20947179]
[1722062331678,2.64535748,68089.0,68088.0,0.20947179]
[1722062332083,2.67630253,68089.0,68088.0,0.20947179]
[1722062333231,2.72630253,68089.0,68088.0,0.20947179]
[1722062334197,2.70325749,68089.0,68088.0,0.20947179]
[1722062334395,2.70325664,68089.0,68088.0,0.20947179]
[1722062335180,2.67231159,68089.0,68088.0,0.20947179]
[1722062335386,2.70453655,68089.0,68088.0,0.20947179]
[1722062337598,2.72758207,68089.0,68088.0,0.20947179]
[1722062338527,2.72759463,68089.0,68088.0,0.20947179]
[1722062340176,3.1715872,68089.0,68088.0,0.20947179]
[1722062344568,3.17178286,68089.0,68088.0,0.20947179]
[1722062345613,2.94502329,68089.0,68088.0,0.20947179]
[1722062345819,3.02152329,68089.0,68088.0,0.20947179]
[1722062347424,2.99847777,68089.0,68088.0,0.20947179]
[1722062348080,2.96860495,68089.0,68088.0,0.20947179]
[1722062348319,3.00126927,68089.0,68088.0,0.20947179]
[1722062349326,3.15016036,68089.0,68088.0,0.20947179]
[1722062349650,3.00126927,68089.0,68088.0,0.20947179]
[1722062349852,3.15152884,68089.0,68088.0,0.20947179]
[1722062351004,3.00126927,68089.0,68088.0,0.20947179]
[1722062351580,3.0011498,68089.0,68088.0,0.20947179]
[1722062352079,3.02419595,68089.0,68088.0,0.20947179]
[1722062354847,2.98909074,68089.0,68088.0,0.20947179]
[1722062355047,3.02428233,68089.0,68088.0,0.20947179]
[1722062355470,3.173157,68089.0,68088.0,0.20947179]
[1722062356450,3.15011085,68089.0,68088.0,0.20947179]
[1722062357024,3.30037042,68089.0,68088.0,0.20947179]
[1722062358246,3.26773932,68089.0,68088.0,0.20947179]
[1722062358596,3.30022839,68089.0,68088.0,0.20947179]
[1722062359367,3.32327458,68089.0,68088.0,0.20947179]
[1722062359738,3.30022839,68089.0,68088.0,0.20947179]
[1722062361248,3.30022913,68089.0,68088.0,0.20947179]
[1722062361652,3.11886465,68089.0,68088.0,0.20947179]
[1722062361845,3.15362822,68089.0,68088.0,0.20947179]
[1722062364307,3.10362822,68089.0,68088.0,0.20947179]
[1722062364885,3.15362822,68089.0,68088.0,0.20947179]
[1722062365126,3.15362822,68089.0,68088.0,0.20943163]
[1722062365254,3.10361865,68089.0,68088.0,0.20943163]
[1722062365836,3.10339262,68089.0,68088.0,0.20943163]
[1722062366062,3.15339262,68089.0,68088.0,0.20943163]
[1722062366614,3.10339262,68089.0,68088.0,0.20943163]
[1722062366816,3.10344015,68089.0,68088.0,0.20943163]
[1722062367187,3.06886465,68089.0,68088.0,0.20943163]
[1722062367545,3.09191161,68089.0,68088.0,0.20943163]
[1722062368642,3.14191161,68089.0,68088.0,0.20943163]
[1722062369210,3.11886465,68089.0,68088.0,0.20943163]
[1722062370449,3.06886465,68089.0,68088.0,0.20943163]
[1722062370809,3.11886465,68089.0,68088.0,0.20943163]
[1722062372410,3.05636465,68089.0,68088.0,0.20943163]
[1722062375494,2.68643165,68089.0,68088.0,0.20943163]
[1722062375668,2.48617208,68089.0,68088.0,0.20943163]
[1722062375882,2.53361159,68089.0,68088.0,0.20943163]
[1722062376375,2.82734459,68089.0,68088.0,0.20943163]
[1722062376602,2.77734459,68089.0,68088.0,0.20943163]
[1722062376804,2.85039185,68089.0,68088.0,0.20943163]
[1722062377100,2.82734459,68089.0,68088.0,0.20943163]
[1722062377810,2.53361159,68089.0,68088.0,0.20943163]
[1722062378309,2.82734459,68089.0,68088.0,0.20943163]
[1722062380395,2.85039181,68089.0,68088.0,0.20943163]
[1722062381507,2.82734459,68089.0,68088.0,0.20943163]
[1722062382352,2.53361159,68089.0,68088.0,0.20943163]
[1722062383061,2.97760416,68089.0,68088.0,0.20943163]
[1722062384070,2.68387116,68089.0,68088.0,0.20943163]
[1722062384448,2.97760416,68089.0,68088.0,0.20943163]
[1722062384823,2.70691834,68089.0,68088.0,0.20943163]
[1722062385033,2.97760416,68089.0,68088.0,0.20943163]
[1722062388372,3.00065138,68089.0,68088.0,0.20943163]
[1722062395422,2.97760416,68089.0,68088.0,0.20943163]
[1722062396020,2.82734459,68089.0,68088.0,0.20943163]
[1722062397440,2.56845823,68089.0,68088.0,0.20943163]
[1722062397639,2.5710186,68089.0,68088.0,0.20943163]
[1722062398050,2.86219123,68089.0,68088.0,0.20943163]
[1722062398449,2.82734459,68089.0,68088.0,0.20943163]
[1722062398691,2.86217983,68089.0,68088.0,0.20943163]
[1722062400254,2.88522692,68089.0,68088.0,0.20943163]
[1722062400380,2.86217983,68089.0,68088.0,0.20943163]
[1722062401186,2.86210007,68089.0,68088.0,0.20943163]
[1722062403368,2.88514725,68089.0,68088.0,0.20943163]
[1722062404082,2.86210007,68089.0,68088.0,0.20943163]
[1722062404977,2.56836707,68089.0,68088.0,0.20943163]
[1722062405315,2.86210007,68089.0,68088.0,0.20943163]
[1722062407183,2.88514725,68089.0,68088.0,0.20943163]
[1722062408624,2.88507932,68089.0,68088.0,0.20943163]
[1722062409683,2.99675742,68089.0,68088.0,0.20943163]
[1722062409886,2.88507932,68089.0,68088.0,0.20943163]
[1722062411081,2.88507932,68089.0,68088.0,0.35123163]
[1722062411725,2.88507932,68089.0,68088.0,0.29023163]
[1722062411926,2.16351142,68089.0,68088.0,0.29023163]
[1722062412124,1.86986978,68089.0,68088.0,0.35123163]
[1722062412323,2.16360278,68089.0,68088.0,0.35123163]
[1722062415406,2.14071543,68089.0,68088.0,0.35123163]
[1722062416649,1.84698243,68089.0,68088.0,0.35123163]
[1722062417037,2.14071543,68089.0,68088.0,0.35123163]
[1722062418206,1.84698243,68089.0,68088.0,0.35123163]
[1722062418368,2.14071543,68089.0,68088.0,0.35123163]
[1722062418928,2.14075338,68089.0,68088.0,0.35123163]
[1722062419302,1.53872428,68089.0,68088.0,0.35123163]
[1722062419470,1.97932328,68089.0,68088.0,0.35123163]
[1722062419884,2.00236857,68089.0,68088.0,0.35123163]
[1722062420081,1.96739188,68089.0,68088.0,0.35123163]
[1722062420495,1.83508898,68089.0,68088.0,0.35123163]
[1722062422027,1.87001406,68089.0,68088.0,0.35123163]
[1722062422231,1.87001484,68089.0,68088.0,0.35123163]
[1722062424517,1.83508898,68089.0,68088.0,0.35123163]
[1722062428444,1.81204369,68089.0,68088.0,0.35123163]
[1722062429597,1.84703072,68089.0,68088.0,0.35123163]
[1722062429978,2.14076372,68089.0,68088.0,0.35123163]
[1722062431585,1.84703072,68089.0,68088.0,0.35123163]
[1722062431761,1.87007618,68089.0,68088.0,0.35123163]
[1722062431969,2.16380918,68089.0,68088.0,0.35123163]
[1722062432403,2.16388394,68089.0,68088.0,0.35123163]
[1722062432605,2.14083848,68089.0,68088.0,0.35123163]
[1722062432889,1.84710548,68089.0,68088.0,0.35123163]
[1722062433364,2.14083848,68089.0,68088.0,0.35123163]
[1722062433677,2.14083848,68089.0,68088.0,0.39362973]
[1722062433678,1.30650648,68089.0,68088.0,0.39362973]
[1722062433905,1.27144469,68089.0,68088.0,0.74049773]
[1722062434471,1.27144469,68089.0,68088.0,1.03423473]
[1722062434787,1.38161358,68089.0,68088.0,1.03423473]
[1722062435898,1.27044469,68089.0,68088.0,1.03423473]
[1722062436246,1.27044469,68089.0,68088.0,1.04423473]
[1722062437824,1.29348909,68089.0,68088.0,1.04423473]
[1722062438054,1.29348909,68089.0,68088.0,1.33797173]
[1722062438271,1.38160563,68089.0,68088.0,1.33797173]
[1722062438422,1.29348909,68089.0,68088.0,1.33797173]
[1722062438858,1.29348909,68089.0,68088.0,1.04423473]
[1722062440219,1.35956585,68089.0,68088.0,1.04423473]
[1722062442699,1.33651092,68089.0,68088.0,1.04423473]
[1722062444516,1.27044469,68089.0,68088.0,1.04423473]
[1722062446140,1.29348892,68089.0,68088.0,1.04423473]
[1722062446341,1.27044469,68089.0,68088.0,1.04423473]
[1722062449590,1.25518731,68089.0,68088.0,1.7819683]
[1722062449910,1.27823154,68089.0,68088.0,1.7819683]
[1722062450041,1.25518731,68089.0,68088.0,1.7819683]
[1722062451475,1.25518731,68089.0,68088.0,1.4882313]
[1722062451934,1.25518731,68089.0,68088.0,1.7819683]
[1722062452053,1.25518731,68089.0,68088.0,1.4882313]
[1722062452832,1.25518731,68089.0,68088.0,1.4832313]
[1722062453015,1.25518731,68089.0,68088.0,1.4862313]
[1722062453327,1.25518731,68089.0,68088.0,1.4952313]
[1722062458135,1.27823034,68089.0,68088.0,1.4952313]
[1722062458514,1.25518731,68089.0,68088.0,1.4952313]
[1722062461282,1.27823034,68089.0,68088.0,1.4952313]
[1722062462372,1.25518731,68089.0,68088.0,1.4952313]
[1722062463061,1.25518731,68089.0,68088.0,1.61725886]
[1722062463269,1.25518731,68089.0,68088.0,1.91099586]
[1722062464178,1.25518731,68089.0,68088.0,2.20192785]
[1722062464393,1.25518731,68089.0,68088.0,2.73766485]
[1722062464596,1.25518731,68089.0,68088.0,2.81309485]
[1722062464799,1.25518731,68089.0,68088.0,2.98507683]
[1722062465630,1.25518731,68089.0,68088.0,2.97407683]
[1722062465856,1.27822576,68089.0,68088.0,2.99007683]
[1722062466229,1.25518731,68089.0,68088.0,3.69007683]
[1722062466530,1.25518731,68089.0,68088.0,3.67807683]
[1722062466741,1.25518731,68089.0,68088.0,3.79207683]
[1722062466913,1.25518731,68089.0,68088.0,3.86857683]
[1722062467334,1.25518731,68089.0,68088.0,3.90873959]
[1722062467677,1.25518731,68089.0,68088.0,3.20873959]
[1722062467880,1.25518731,68089.0,68088.0,3.16657683]
[1722062468915,1.25518731,68089.0,68088.0,2.74456117]
[1722062469680,1.25518731,68089.0,68088.0,2.44462918]
[1722062469810,1.25518731,68089.0,68088.0,2.17789218]
[1722062471660,1.25518731,68089.0,68088.0,2.12789218]
[1722062471880,1.25518731,68089.0,68088.0,2.17789218]
[1722062472081,1.25518731,68089.0,68088.0,2.12789218]
[1722062472438,1.25518731,68089.0,68088.0,2.17790509]
[1722062473217,1.27822597,68089.0,68088.0,2.17790509]
[1722062475833,1.27822597,68089.0,68088.0,2.17790589]
[1722062476237,1.27822597,68089.0,68088.0,1.97790589]
[1722062476416,1.27822597,68089.0,68088.0,2.17790589]
[1722062477289,1.27822597,68089.0,68088.0,2.17946009]
[1722062477504,1.27822597,68089.0,68088.0,2.17790589]
[1722062477811,1.27822597,68089.0,68088.0,2.17946009]
[1722062478221,1.27822597,68089.0,68088.0,2.17790589]
[1722062479456,1.27786894,68089.0,68088.0,2.17790589]
[1722062480592,1.27786894,68089.0,68088.0,2.42783788]
[1722062480798,1.27786894,68089.0,68088.0,2.17790589]
[1722062481032,1.27786894,68089.0,68088.0,2.67783788]
[1722062481856,1.27786894,68089.0,68088.0,2.70083788]
[1722062482030,1.27786894,68089.0,68088.0,2.99457488]
[1722062482383,1.27786894,68089.0,68088.0,2.99656556]
[1722062482609,1.27786894,68089.0,68088.0,3.68256556]
[1722062482784,1.27786894,68089.0,68088.0,3.69656556]
[1722062483448,1.27786894,68089.0,68088.0,3.23063357]
[1722062483856,1.27786894,68089.0,68088.0,3.69656556]
[1722062485272,1.27786894,68089.0,68088.0,3.86827562]
[1722062485645,1.27786894,68089.0,68088.0,3.57456729]
[1722062485844,1.27786894,68089.0,68088.0,3.86832705]
[1722062486486,1.25483028,68089.0,68088.0,3.86832705]
[1722062487239,1.25483028,68089.0,68088.0,3.46206405]
[1722062487423,1.25483028,68089.0,68088.0,3.16832705]
[1722062489244,1.25483028,68089.0,68088.0,3.16850188]
[1722062489662,1.25483028,68089.0,68088.0,3.16650188]
[1722062489808,1.25483028,68089.0,68088.0,3.16850188]
[1722062490215,1.25483028,68089.0,68088.0,3.86850188]
[1722062490586,1.25483028,68089.0,68088.0,3.41656989]
[1722062490795,1.25483028,68089.0,68088.0,3.86850188]
[1722062491438,1.25483028,68089.0,68088.0,3.92949867]
[1722062491638,1.25483028,68089.0,68088.0,4.22323567]
[1722062492436,1.25483028,68089.0,68088.0,3.4163723]
[1722062492634,1.25483028,68089.0,68088.0,3.71055468]
[1722062492836,1.25483028,68089.0,68088.0,3.77155107]
[1722062493069,1.25483028,68089.0,68088.0,4.22348306]
[1722062493345,1.25483028,68089.0,68088.0,3.92974606]
[1722062494557,1.25483028,68089.0,68088.0,4.22348306]
[1722062494769,1.25483028,68089.0,68088.0,3.92930068]
[1722062494917,1.25483028,68089.0,68088.0,4.16248241]
[1722062495122,1.25483028,68089.0,68088.0,4.22347866]
[1722062496044,1.25483028,68089.0,68088.0,4.16256707]
[1722062496199,1.25483028,68089.0,68088.0,4.22356332]
[1722062496566,1.27786801,68089.0,68088.0,4.22356332]
[1722062499101,1.25483028,68089.0,68088.0,4.22356332]
[1722062499303,1.25483028,68089.0,68088.0,4.16265796]
[1722062499509,1.25483028,68089.0,68088.0,4.22365421]
[1722062502214,1.25483028,68089.0,68088.0,3.77172222]
[1722062502917,1.25483028,68089.0,68088.0,3.71062558]
[1722062503057,1.25483028,68089.0,68088.0,4.16255757]
[1722062503258,1.25483028,68089.0,68088.0,4.22355381]
[1722062505716,1.25483028,68089.0,68088.0,4.26743543]
[1722062505974,1.25483028,68089.0,68088.0,3.77162182]
[1722062506134,1.25483028,68089.0,68088.0,4.22355381]
[1722062506341,1.25483028,68089.0,68088.0,4.1627055]
[1722062506543,1.25483028,68089.0,68088.0,4.26760674]
[1722062506699,1.25483028,68089.0,68088.0,3.81567475]
[1722062507465,1.25483028,68089.0,68088.0,3.58955924]
[1722062507810,1.25483028,68089.0,68088.0,3.13762725]
[1722062508012,1.25483028,68089.0,68088.0,3.46337353]
[1722062508494,1.25483028,68089.0,68088.0,3.39750833]
[1722062508888,1.25483028,68089.0,68088.0,3.48531833]
[1722062509454,1.25483028,68089.0,68088.0,3.39750833]
[1722062509652,1.25483028,68089.0,68088.0,3.33670874]
[1722062510051,1.25483028,68089.0,68088.0,3.39770133]
[1722062510461,1.25483028,68089.0,68088.0,3.9374833]
[1722062510837,1.25483028,68089.0,68088.0,4.6374833]
[1722062511316,1.25483028,68089.0,68088.0,4.18555131]
[1722062511501,1.25483028,68089.0,68088.0,4.6374833]
[1722062512288,1.25483028,68089.0,68088.0,4.5609833]
[1722062512493,1.25483028,68089.0,68088.0,4.62347228]
[1722062512666,1.25483028,68089.0,68088.0,4.52163332]
[1722062512886,1.25483028,68089.0,68088.0,4.54963332]
[1722062513222,1.25483028,68089.0,68088.0,4.036498]
[1722062513436,1.25483028,68089.0,68088.0,4.09748982]
[1722062513759,1.25483028,68089.0,68088.0,4.54942181]
[1722062514171,1.25483028,68089.0,68088.0,4.09748982]
[1722062515167,1.25483028,68089.0,68088.0,4.18532352]
[1722062515936,1.25483028,68089.0,68088.0,4.09748982]
[1722062516237,1.25483028,68089.0,68088.0,4.54942181]
[1722062516563,1.25483028,68089.0,68088.0,4.18548571]
[1722062516963,1.25483028,68089.0,68088.0,4.6374177]
[1722062518067,1.25483028,68089.0,68088.0,4.18548571]
[1722062518272,1.25483028,68089.0,68088.0,4.6374177]
[1722062518785,1.25483028,68089.0,68088.0,4.18548571]
[1722062519185,1.25483028,68089.0,68088.0,4.09764804]
[1722062519484,1.27786784,68089.0,68088.0,4.09764804]
[1722062519683,1.27786784,68089.0,68088.0,4.65937711]
[1722062519919,1.27786784,68089.0,68088.0,4.20743554]
[1722062520233,1.27786784,68089.0,68088.0,4.65919045]
[1722062520433,1.27786784,68089.0,68088.0,4.59819863]
[1722062520639,1.27786784,68089.0,68088.0,4.65918993]
[1722062521196,1.27786784,68089.0,68088.0,3.92929559]
[1722062521397,1.27786784,68089.0,68088.0,4.65925513]
[1722062522524,1.25483028,68089.0,68088.0,4.65917393]
[1722062523605,1.25483028,68089.0,68088.0,4.54935696]
[1722062524206,1.25483028,68089.0,68088.0,4.09742497]
[1722062525194,1.10796528,68089.0,68088.0,4.84309396]
[1722062525622,1.10796528,68089.0,68088.0,4.39116197]
[1722062525985,1.13100238,68089.0,68088.0,4.39124419]
[1722062526190,1.13100238,68089.0,68088.0,4.39124263]
[1722062526437,1.13100238,68089.0,68088.0,4.84317462]
[1722062527985,1.01351038,68089.0,68088.0,4.84317462]
[1722062529401,1.01351038,68089.0,68088.0,4.78226759]
[1722062529625,1.01351038,68089.0,68088.0,4.84325713]
[1722062529805,1.01351038,68089.0,68088.0,4.54952013]
[1722062530496,1.01351038,68089.0,68088.0,4.84325713]
[1722062531211,0.99047328,68089.0,68088.0,4.84325713]
[1722062532904,0.99047328,68089.0,68088.0,4.78226759]
[1722062533109,0.99047328,68089.0,68088.0,4.84325707]
[1722062533761,0.99047328,68089.0,68088.0,4.54952007]
[1722062534127,0.99047328,68089.0,68088.0,4.84325707]
[1722062534531,0.99047328,68089.0,68088.0,4.54952007]
[1722062534733,1.01350997,68089.0,68088.0,4.54952007]
[1722062535428,1.01350997,68089.0,68088.0,4.09758808]
[1722062536353,1.01350997,68089.0,68088.0,3.7101093]
[1722062536528,1.01350997,68089.0,68088.0,4.09764021]
[1722062536901,1.01350997,68089.0,68088.0,4.5495722]
[1722062537381,1.01350997,68089.0,68088.0,4.8433092]
[1722062537572,1.01350997,68089.0,68088.0,4.5495722]
[1722062537767,1.01350997,68089.0,68088.0,4.09764021]
[1722062537968,1.01350997,68089.0,68088.0,4.70204783]
[1722062538174,1.01350997,68089.0,68088.0,4.25011584]
[1722062538749,1.01350997,68089.0,68088.0,4.99578483]
[1722062539616,1.01350997,68089.0,68088.0,4.70204783]
[1722062539839,1.01350997,68089.0,68088.0,4.64113749]
[1722062540111,1.01350997,68089.0,68088.0,4.31118461]
[1722062540763,0.99880582,68089.0,68088.0,4.31118461]
[1722062542399,0.99880582,68089.0,68088.0,4.7631166]
[1722062543211,0.99880582,68089.0,68088.0,4.76311659]
[1722062543355,0.99880582,68089.0,68088.0,4.3111846]
[1722062543752,0.85853247,68089.0,68088.0,4.3111846]
[1722062544007,0.0531953,68089.0,68088.0,4.61064096]
[1722062544212,0.00078561,68089.0,68088.0,5.04500515]
[1722062544409,0.00084,68095.0,68094.0,3.00584009]
[1722062544609,0.00084,68095.0,68094.0,5.11588664]
[1722062544865,0.00084,68095.0,68094.0,5.36588664]
[1722062545481,0.00084,68095.0,68094.0,5.37988664]
[1722062546484,0.00084,68095.0,68094.0,5.33297978]
[1722062546685,0.00084,68095.0,68094.0,5.39396419]
[1722062547429,0.02387474,68095.0,68094.0,5.39396419]
[1722062547958,0.02387474,68095.0,68094.0,4.72339419]
[1722062548496,0.00084,68095.0,68094.0,4.72339419]
[1722062549040,0.00284,68100.0,68099.0,2.15962509]
[1722062549245,0.00284,68100.0,68099.0,3.56972919]
[1722062549870,0.00284,68100.0,68099.0,3.75874442]
[1722062550186,0.00284,68100.0,68099.0,3.81972876]
[1722062550385,0.00284,68100.0,68099.0,3.83372876]
[1722062550752,0.00284,68100.0,68099.0,4.53372876]
[1722062551987,0.00284,68100.0,68099.0,4.54772876]
[1722062553330,0.00284,68100.0,68099.0,4.4868465]
[1722062553640,0.00284,68100.0,68099.0,4.54783078]
[1722062555002,0.002,68119.0,68106.0,1.86379509]
[1722062555003,0.08033,68107.0,68106.0,1.86379509]
[1722062555336,0.08033,68107.0,68106.0,2.88906042]
[1722062555337,0.00083,68107.0,68106.0,2.88906042]
[1722062555518,0.00083,68107.0,68106.0,2.9500447]
[1722062555720,0.00083,68107.0,68106.0,2.99396215]
[1722062555920,0.00083,68107.0,68106.0,3.24396215]
[1722062556097,0.00083,68107.0,68106.0,3.25796215]
[1722062556296,0.02386284,68107.0,68106.0,3.25796215]
[1722062556497,0.02386284,68107.0,68106.0,3.95796215]
[1722062556902,0.02386284,68107.0,68106.0,3.97196215]
[1722062557514,0.02386284,68107.0,68106.0,3.9280447]
[1722062558272,0.02386284,68107.0,68106.0,3.9260447]
[1722062558478,0.10336284,68107.0,68106.0,3.9260447]
[1722062559539,0.10336284,68107.0,68106.0,3.9349931]
[1722062559890,0.08033,68107.0,68106.0,3.9349931]
[1722062560088,0.08033,68107.0,68106.0,3.87400882]
[1722062560532,0.08033,68107.0,68106.0,3.9349892]
[1722062560825,0.08033,68107.0,68106.0,3.9369892]
[1722062561654,0.08033,68107.0,68106.0,3.9349892]
[1722062562882,0.002,68119.0,68107.0,0.40623009]
[1722062563105,0.002,68119.0,68118.0,2.09032566]
[1722062563282,0.002,68119.0,68118.0,2.64555357]
[1722062563806,0.002,68119.0,68118.0,2.81538591]
[1722062564011,0.002,68119.0,68118.0,3.06538591]
[1722062564181,0.002,68119.0,68118.0,2.61545392]
[1722062564384,0.002,68119.0,68118.0,2.97355845]
[1722062564812,0.002,68119.0,68118.0,2.97555845]
[1722062564985,0.002,68119.0,68118.0,3.42355845]
[1722062565191,0.002,68119.0,68118.0,2.97362646]
[1722062565443,0.002,68119.0,68118.0,2.98762646]
[1722062565811,0.002,68119.0,68118.0,3.43955845]
[1722062566008,0.002,68119.0,68118.0,3.25162646]
[1722062566411,0.002,68119.0,68118.0,3.70155845]
[1722062566595,0.002,68119.0,68118.0,3.57961054]
[1722062566811,0.002,68119.0,68118.0,3.874348]
[1722062567022,0.02502909,68119.0,68118.0,3.874348]
[1722062568192,0.02502909,68119.0,68118.0,4.09367779]
[1722062568397,9e-08,68119.0,68118.0,4.81284371]
[1722062568595,0.002,68129.0,68128.0,2.0198751]
[1722062568896,0.002,68129.0,68128.0,3.35214656]
[1722062569133,0.002,68129.0,68128.0,3.20486568]
[1722062569540,0.002,68129.0,68128.0,3.86394242]
[1722062569745,0.002,68129.0,68128.0,3.78744242]
[1722062569952,0.002,68129.0,68128.0,3.78742396]
[1722062570157,0.002,68129.0,68128.0,3.87792396]
[1722062570860,0.002,68129.0,68128.0,4.12785595]
[1722062571007,0.002,68129.0,68128.0,3.67792396]
[1722062571214,0.002,68129.0,68128.0,4.12785595]
[1722062571872,0.002,68129.0,68128.0,4.14185595]
[1722062572499,0.002,68129.0,68128.0,3.69192396]
[1722062572703,0.002,68129.0,68128.0,4.14185595]
[1722062573296,0.002,68129.0,68128.0,4.14185563]
[1722062574741,0.002,68129.0,68128.0,4.14385563]
[1722062575088,0.002,68129.0,68128.0,4.39385563]
[1722062576433,0.002,68129.0,68128.0,4.40293997]
[1722062579687,0.002,68129.0,68128.0,3.70293997]
[1722062580160,0.002,68129.0,68128.0,3.581016]
[1722062580376,0.002,68129.0,68128.0,3.70293964]
[1722062580594,0.002,68129.0,68128.0,3.37450765]
[1722062580791,0.002,68129.0,68128.0,3.70093964]
[1722062580901,0.002,68129.0,68128.0,3.70293964]
[1722062582763,0.002,68129.0,68128.0,4.40293964]
[1722062583398,0.002,68129.0,68128.0,4.32643964]
[1722062583547,0.002,68129.0,68128.0,4.40093964]
[1722062583770,0.0627,68129.0,68128.0,4.40093964]
[1722062584106,0.0627,68129.0,68128.0,4.15100765]
[1722062584332,0.0627,68129.0,68128.0,3.90100765]
[1722062585340,0.0627,68129.0,68128.0,4.15093964]
[1722062585610,0.0627,68129.0,68128.0,3.90100765]
[1722062586019,0.0627,68129.0,68128.0,4.07443964]
[1722062586218,0.0627,68129.0,68128.0,4.15093964]
[1722062587325,0.0627,68129.0,68128.0,3.45093964]
[1722062588299,0.0627,68129.0,68128.0,3.37443964]
[1722062588679,0.0627,68129.0,68128.0,3.20100765]
[1722062589240,0.0627,68129.0,68128.0,3.00100765]
[1722062589443,0.0627,68129.0,68128.0,3.07908401]
[1722062589644,0.0627,68129.0,68128.0,3.20101019]
[1722062590214,0.08572533,68129.0,68128.0,3.00101019]
[1722062590415,0.08572533,68129.0,68128.0,3.37459006]
[1722062590620,0.08572533,68129.0,68128.0,3.62652205]
[1722062590821,0.08572533,68129.0,68128.0,4.32652205]
[1722062591025,0.08572533,68129.0,68128.0,3.87459006]
[1722062591546,0.08572533,68129.0,68128.0,4.32452205]
[1722062591720,0.02502533,68129.0,68128.0,3.87459006]
[1722062591927,0.02502533,68129.0,68128.0,4.32452205]
[1722062592378,0.02502533,68129.0,68128.0,3.87459006]
[1722062592916,0.02502533,68129.0,68128.0,4.3241984]
[1722062593175,0.02502533,68129.0,68128.0,3.8742664]
[1722062593407,0.02502533,68129.0,68128.0,4.32619839]
[1722062593647,0.02502533,68129.0,68128.0,3.8742664]
[1722062596472,0.02502533,68129.0,68128.0,4.32419839]
[1722062597437,0.02502533,68129.0,68128.0,4.3851615]
[1722062599665,0.02502533,68129.0,68128.0,3.329016]
[1722062599867,0.02502533,68129.0,68128.0,3.62417174]
[1722062600072,0.02502533,68129.0,68128.0,3.38997907]
[1722062600278,0.02502533,68129.0,68128.0,3.68513435]
[1722062601289,0.02502533,68129.0,68128.0,3.68513439]
[1722062602795,0.02502533,68129.0,68128.0,4.38513439]
[1722062603264,0.002,68129.0,68128.0,4.38525376]
[1722062603675,0.144,68129.0,68128.0,4.13532177]
[1722062604488,0.144,68129.0,68128.0,2.44175677]
[1722062604699,0.144,68129.0,68128.0,2.38079371]
[1722062605280,0.144,68129.0,68128.0,2.30429371]
[1722062605455,0.144,68129.0,68128.0,2.37170937]
[1722062605658,0.14483,68129.0,68128.0,2.29520937]
[1722062605828,0.14483,68129.0,68128.0,2.37170937]
[1722062606027,0.14483,68129.0,68128.0,2.29520937]
[1722062606231,0.14483,68129.0,68128.0,1.46173095]
[1722062606589,0.14483,68129.0,68128.0,1.7553105]
[1722062607949,0.14483,68129.0,68128.0,1.1617455]
[1722062608159,0.14483,68129.0,68128.0,0.8681805]
[1722062609017,0.14483,68129.0,68128.0,0.8401805]
[1722062609218,0.14483,68129.0,68128.0,0.8681805]
[1722062609865,0.14483,68129.0,68128.0,0.8541805]
[1722062610043,0.14483,68129.0,68128.0,0.8681805]
[1722062610457,0.14483,68129.0,68128.0,0.7213985]
[1722062610663,0.14483,68129.0,68128.0,0.7073985]
[1722062610819,0.16785663,68129.0,68128.0,0.7213985]
[1722062611024,0.14483,68129.0,68128.0,0.7213985]
[1722062612387,0.14483,68129.0,68128.0,0.8681805]
[1722062612558,0.14483,68129.0,68128.0,0.7213985]
[1722062612735,0.14483,68129.0,68128.0,0.9213985]
[1722062612940,0.14483,68129.0,68128.0,0.7213985]
[1722062613141,0.14483,68129.0,68128.0,0.59945767]
[1722062614188,0.14483,68129.0,68128.0,0.58545767]
[1722062614426,0.97825768,68129.0,68128.0,0.58545767]
[1722062614652,0.99925092,68129.0,68128.0,0.59745767]
[1722062614848,0.95523,68129.0,68128.0,0.59745767]
[1722062615283,0.99922652,68129.0,68128.0,0.59745767]
[1722062615475,0.70566652,68129.0,68128.0,0.59745767]
[1722062616291,0.66167,68129.0,68128.0,0.59745767]
[1722062616895,0.7056527,68129.0,68128.0,0.4471981]
[1722062617123,1.03645016,68129.0,68128.0,0.4471981]
[1722062617798,1.03645016,68129.0,68128.0,0.4331981]
[1722062618019,1.03645016,68129.0,68128.0,0.4211981]
[1722062618250,0.97047611,68129.0,68128.0,0.4211981]
[1722062618486,1.03845016,68129.0,68128.0,0.4211981]
[1722062618857,1.03645016,68129.0,68128.0,0.4211981]
[1722062619035,1.03845016,68129.0,68128.0,0.4211981]
[1722062619239,0.97247611,68129.0,68128.0,0.4211981]
[1722062620083,0.97247701,68129.0,68128.0,0.4211981]
[1722062620308,1.01641125,68129.0,68128.0,0.4211981]
[1722062621473,0.97247701,68129.0,68128.0,0.4211981]
[1722062621818,0.95723,68129.0,68128.0,0.4211981]
[1722062623904,0.66367,68129.0,68128.0,0.6211981]
[1722062624163,0.66167,68129.0,68128.0,0.6211981]
[1722062624513,0.66167,68129.0,68128.0,0.6241981]
[1722062624737,0.68469944,68129.0,68128.0,0.6241981]
[1722062625609,0.68469944,68129.0,68128.0,0.4241981]
[1722062626012,0.66167,68129.0,68128.0,0.4241981]
[1722062627255,0.95523,68129.0,68128.0,0.4241981]
[1722062629370,0.97825944,68129.0,68128.0,0.4241981]
[1722062629531,0.95523,68129.0,68128.0,0.4241981]
[1722062631342,0.97047698,68129.0,68128.0,0.4241981]
[1722062632403,1.26403698,68129.0,68128.0,0.3818]
[1722062632622,0.97047698,68129.0,68128.0,0.3818]
[1722062633217,1.38916677,68129.0,68128.0,0.3818]
[1722062633751,1.54118274,68129.0,68128.0,0.3818]
[1722062633952,1.64118274,68129.0,68128.0,0.3818]
[1722062634166,1.93474274,68129.0,68128.0,0.3142]
[1722062634369,1.93474274,68129.0,68128.0,0.3122]
[1722062634533,1.82703405,68129.0,68128.0,0.3132]
[1722062634736,1.97729362,68129.0,68128.0,0.3132]
[1722062634959,1.97529362,68129.0,68128.0,0.3132]
[1722062635417,2.08697392,68129.0,68128.0,0.3142]
[1722062636282,1.97729362,68129.0,68128.0,0.3142]
[1722062636494,2.00032625,68129.0,68128.0,0.3142]
[1722062636922,2.00136191,68129.0,68128.0,0.3142]
[1722062637265,1.85110234,68129.0,68128.0,0.3142]